[Event "*** SCC Grand Prix: Titled Tuesday Blitz"]
[Site "Chess.com"]
[Date "2020.08.11"]
[Round "6"]
[White "crescentmoon2411"]
[Black "laboratorio25"]
[Result "1-0"]
[WhiteElo "2739"]
[BlackElo "2427"]
[TimeControl "180+1"]
[EndTime "11:06:00 PDT"]
[Termination "crescentmoon2411 won by resignation"]

1. c4 {[%clk 0:03:00.9]} 1... e5 {[%clk 0:02:58.5]} 2. Nc3 {[%clk 0:03:00.8]}
2... Nf6 {[%clk 0:02:58.4]} 3. g3 {[%clk 0:02:59.9]} 3... Bc5 {[%clk 0:02:58.3]}
4. Bg2 {[%clk 0:02:59.6]} 4... Nc6 {[%clk 0:02:54.3]} 5. Nf3 {[%clk 0:02:58]}
5... d6 {[%clk 0:02:54.3]} 6. O-O {[%clk 0:02:56.8]} 6... a6 {[%clk 0:02:53.1]}
7. d3 {[%clk 0:02:52.8]} 7... O-O {[%clk 0:02:47]} 8. Bg5 {[%clk 0:02:52.1]}
8... h6 {[%clk 0:02:47.2]} 9. Bh4 {[%clk 0:02:50.5]} 9... Ne7 {[%clk 0:02:31.2]}
10. Bxf6 {[%clk 0:02:42.9]} 10... gxf6 {[%clk 0:02:32.1]} 11. Qd2 {[%clk
0:02:30.6]} 11... Kg7 {[%clk 0:02:23.3]} 12. Ne4 {[%clk 0:02:25.3]} 12... Ng6
{[%clk 0:02:20.7]} 13. Nxc5 {[%clk 0:02:00.4]} 13... dxc5 {[%clk 0:02:21.6]} 14.
b4 {[%clk 0:01:58.3]} 14... Qd6 {[%clk 0:02:12.9]} 15. Rfb1 {[%clk 0:01:54.6]}
15... Rd8 {[%clk 0:02:06.4]} 16. Qe3 {[%clk 0:01:39.5]} 16... cxb4 {[%clk
0:02:03.7]} 17. c5 {[%clk 0:01:39.4]} 17... Qe7 {[%clk 0:01:48.7]} 18. Rxb4
{[%clk 0:01:38.9]} 18... Rb8 {[%clk 0:01:34.5]} 19. Rab1 {[%clk 0:01:37.4]}
19... Be6 {[%clk 0:01:26.7]} 20. Rxb7 {[%clk 0:01:33.5]} 20... Rxb7 {[%clk
0:01:27.5]} 21. Rxb7 {[%clk 0:01:34.3]} 21... Bxa2 {[%clk 0:01:26.9]} 22. Ra7
{[%clk 0:01:28.3]} 22... Qe6 {[%clk 0:01:09.4]} 23. Rxc7 {[%clk 0:01:22.7]}
23... Bd5 {[%clk 0:01:05.3]} 24. h4 {[%clk 0:01:17]} 24... Ne7 {[%clk
0:01:01.6]} 25. Nd4 {[%clk 0:00:59.6]} 25... exd4 {[%clk 0:00:49.1]} 26. Qxe6
{[%clk 0:01:00.5]} 26... fxe6 {[%clk 0:00:48.4]} 27. Rxe7+ {[%clk 0:00:55.7]}
27... Kg6 {[%clk 0:00:39.6]} 28. Bxd5 {[%clk 0:00:51.7]} 28... Rxd5 {[%clk
0:00:38.2]} 29. Rxe6 {[%clk 0:00:51.3]} 29... Rxc5 {[%clk 0:00:34.4]} 30. Rxa6
{[%clk 0:00:51.3]} 30... Rc1+ {[%clk 0:00:32.9]} 31. Kg2 {[%clk 0:00:51.2]}
31... Rc5 {[%clk 0:00:29.3]} 32. Rd6 {[%clk 0:00:49.7]} 32... Re5 {[%clk
0:00:25.9]} 33. Kf1 {[%clk 0:00:49.1]} 1-0

[Event "*** SCC Grand Prix: Titled Tuesday Blitz"]
[Site "Chess.com"]
[Date "2020.08.11"]
[Round "6"]
[White "redbaron8888"]
[Black "GelmanAlexander"]
[Result "0-1"]
[WhiteElo "2412"]
[BlackElo "2581"]
[TimeControl "180+1"]
[EndTime "11:06:04 PDT"]
[Termination "GelmanAlexander won by checkmate"]

1. d4 {[%clk 0:03:00.8]} 1... Nf6 {[%clk 0:02:59.7]} 2. c4 {[%clk 0:02:59.2]}
2... c5 {[%clk 0:03:00]} 3. d5 {[%clk 0:02:58.9]} 3... b5 {[%clk 0:03:00.4]} 4.
Nd2 {[%clk 0:02:57.8]} 4... b4 {[%clk 0:02:59.1]} 5. e4 {[%clk 0:02:57.4]} 5...
d6 {[%clk 0:02:59.6]} 6. Bd3 {[%clk 0:02:55.5]} 6... g6 {[%clk 0:02:59.8]} 7. f4
{[%clk 0:02:55.7]} 7... Bg7 {[%clk 0:02:59.8]} 8. Ndf3 {[%clk 0:02:53.8]} 8...
O-O {[%clk 0:02:56.4]} 9. Ne2 {[%clk 0:02:53.6]} 9... a5 {[%clk 0:02:43.6]} 10.
O-O {[%clk 0:02:53.3]} 10... a4 {[%clk 0:02:44.1]} 11. Rb1 {[%clk 0:02:50.9]}
11... Nbd7 {[%clk 0:02:32.8]} 12. Ng3 {[%clk 0:02:47.1]} 12... e6 {[%clk
0:02:23.3]} 13. dxe6 {[%clk 0:02:40.7]} 13... fxe6 {[%clk 0:02:23.3]} 14. Ng5
{[%clk 0:02:41.6]} 14... Qe7 {[%clk 0:02:18.2]} 15. Be3 {[%clk 0:02:31.2]} 15...
Bb7 {[%clk 0:02:14]} 16. Qd2 {[%clk 0:02:23.3]} 16... Ng4 {[%clk 0:02:08.7]} 17.
Kh1 {[%clk 0:02:19.4]} 17... Nxe3 {[%clk 0:02:01.7]} 18. Qxe3 {[%clk 0:02:19]}
18... Rae8 {[%clk 0:01:51.2]} 19. b3 {[%clk 0:02:07.6]} 19... a3 {[%clk
0:01:46.5]} 20. Rbe1 {[%clk 0:02:04.5]} 20... Bh6 {[%clk 0:01:36.8]} 21. h4
{[%clk 0:01:32.8]} 21... Bg7 {[%clk 0:01:30.3]} 22. Kh2 {[%clk 0:01:30]} 22...
Nf6 {[%clk 0:01:30.1]} 23. Qe2 {[%clk 0:01:25.6]} 23... h6 {[%clk 0:01:23.7]}
24. e5 {[%clk 0:01:20.6]} 24... dxe5 {[%clk 0:01:00.9]} 25. fxe5 {[%clk
0:01:14.6]} 25... hxg5 {[%clk 0:00:46.7]} 26. exf6 {[%clk 0:01:07.1]} 26... Rxf6
{[%clk 0:00:46.9]} 27. Rxf6 {[%clk 0:01:00.9]} 27... Qxf6 {[%clk 0:00:45.4]} 28.
hxg5 {[%clk 0:00:57.8]} 28... Qxg5 {[%clk 0:00:43.3]} 29. Nf1 {[%clk 0:00:32.7]}
29... Bd4 {[%clk 0:00:29.1]} 30. Be4 {[%clk 0:00:29.5]} 30... Qh4# {[%clk
0:00:28.2]} 0-1

[Event "*** SCC Grand Prix: Titled Tuesday Blitz"]
[Site "Chess.com"]
[Date "2020.08.11"]
[Round "6"]
[White "Aygehovit1992"]
[Black "emiliocordova"]
[Result "0-1"]
[WhiteElo "2621"]
[BlackElo "2833"]
[TimeControl "180+1"]
[EndTime "11:06:07 PDT"]
[Termination "emiliocordova won on time"]

1. e4 {[%clk 0:03:00.9]} 1... c5 {[%clk 0:02:58.3]} 2. Nf3 {[%clk 0:03:01]} 2...
Nc6 {[%clk 0:02:56.4]} 3. Bb5 {[%clk 0:03:00.6]} 3... e6 {[%clk 0:02:54.4]} 4.
O-O {[%clk 0:02:59.8]} 4... Nge7 {[%clk 0:02:53.9]} 5. c3 {[%clk 0:03:00.1]}
5... Ng6 {[%clk 0:02:52.8]} 6. Re1 {[%clk 0:02:56.8]} 6... a6 {[%clk 0:02:51.1]}
7. Ba4 {[%clk 0:02:47.4]} 7... Be7 {[%clk 0:02:50]} 8. d4 {[%clk 0:02:46.7]}
8... b5 {[%clk 0:02:42]} 9. Bb3 {[%clk 0:02:42.3]} 9... cxd4 {[%clk 0:02:39]}
10. cxd4 {[%clk 0:02:40.8]} 10... Bb7 {[%clk 0:02:38.6]} 11. d5 {[%clk
0:02:39.6]} 11... Na5 {[%clk 0:02:36.7]} 12. d6 {[%clk 0:02:37.4]} 12... Bf6
{[%clk 0:02:36.7]} 13. Nc3 {[%clk 0:02:03.6]} 13... Rc8 {[%clk 0:02:24.4]} 14.
Qd3 {[%clk 0:01:45]} 14... O-O {[%clk 0:02:15.8]} 15. e5 {[%clk 0:01:36.5]}
15... Bxf3 {[%clk 0:02:14.3]} 16. exf6 {[%clk 0:01:36.2]} 16... Ba8 {[%clk
0:02:13.7]} 17. fxg7 {[%clk 0:01:33.3]} 17... Kxg7 {[%clk 0:02:13.9]} 18. Bc2
{[%clk 0:01:21.7]} 18... Rg8 {[%clk 0:02:12.4]} 19. Ne4 {[%clk 0:01:07.8]} 19...
Qh4 {[%clk 0:01:52.2]} 20. Bd2 {[%clk 0:00:34]} 20... Nc4 {[%clk 0:01:30.6]} 21.
Bc3+ {[%clk 0:00:33.5]} 21... e5 {[%clk 0:01:30.7]} 22. Qg3 {[%clk 0:00:24.3]}
22... Kf8 {[%clk 0:01:25.5]} 23. Ng5 {[%clk 0:00:10.5]} 23... f6 {[%clk
0:01:06.4]} 24. Qxh4 {[%clk 0:00:09.3]} 24... Nxh4 {[%clk 0:01:06.3]} 25. Nxh7+
{[%clk 0:00:09.4]} 25... Kf7 {[%clk 0:01:02.8]} 26. g3 {[%clk 0:00:02.7]} 26...
Nf3+ {[%clk 0:01:02.4]} 27. Kf1 {[%clk 0:00:03]} 27... Nxh2+ {[%clk 0:00:54.5]}
28. Ke2 {[%clk 0:00:02.6]} 28... Bf3+ {[%clk 0:00:54.5]} 0-1

[Event "*** SCC Grand Prix: Titled Tuesday Blitz"]
[Site "Chess.com"]
[Date "2020.08.11"]
[Round "6"]
[White "IMAghasiyevKamal"]
[Black "Timerkhanov"]
[Result "1-0"]
[WhiteElo "2452"]
[BlackElo "2575"]
[TimeControl "180+1"]
[EndTime "11:06:07 PDT"]
[Termination "IMAghasiyevKamal won by resignation"]

1. e4 {[%clk 0:03:00.9]} 1... c5 {[%clk 0:02:59.8]} 2. Nf3 {[%clk 0:02:56.8]}
2... a6 {[%clk 0:02:59.8]} 3. c3 {[%clk 0:02:56]} 3... d5 {[%clk 0:02:58.6]} 4.
exd5 {[%clk 0:02:55.1]} 4... Qxd5 {[%clk 0:02:59.1]} 5. d4 {[%clk 0:02:55.7]}
5... Nf6 {[%clk 0:02:58.8]} 6. Be2 {[%clk 0:02:54.7]} 6... e6 {[%clk 0:02:54.1]}
7. O-O {[%clk 0:02:48.1]} 7... Nc6 {[%clk 0:02:52.9]} 8. Na3 {[%clk 0:02:33.5]}
8... cxd4 {[%clk 0:02:52.2]} 9. Nc4 {[%clk 0:02:33.7]} 9... Qd8 {[%clk
0:02:48.9]} 10. cxd4 {[%clk 0:02:28.9]} 10... Be7 {[%clk 0:02:45.9]} 11. Nce5
{[%clk 0:02:28.1]} 11... Nxe5 {[%clk 0:02:40.2]} 12. Nxe5 {[%clk 0:02:20.6]}
12... O-O {[%clk 0:02:38.2]} 13. Bf3 {[%clk 0:02:21]} 13... Nd5 {[%clk
0:02:37.4]} 14. Qb3 {[%clk 0:02:19]} 14... Bf6 {[%clk 0:02:32.9]} 15. Bd2 {[%clk
0:02:15.4]} 15... b5 {[%clk 0:02:14]} 16. Rac1 {[%clk 0:02:03.5]} 16... Bb7
{[%clk 0:02:12.4]} 17. a4 {[%clk 0:02:03.4]} 17... Qe8 {[%clk 0:01:13.7]} 18.
Rfe1 {[%clk 0:01:48]} 18... Rb8 {[%clk 0:01:09.6]} 19. axb5 {[%clk 0:01:40.3]}
19... axb5 {[%clk 0:00:54.3]} 20. Rc5 {[%clk 0:01:28.8]} 20... b4 {[%clk
0:00:52.4]} 21. Qd3 {[%clk 0:01:15.2]} 21... Qa4 {[%clk 0:00:31.4]} 22. b3
{[%clk 0:01:11.7]} 22... Qa7 {[%clk 0:00:26.8]} 23. Be4 {[%clk 0:01:01.5]} 23...
Bxe5 {[%clk 0:00:21.9]} 24. Bxh7+ {[%clk 0:01:00.8]} 24... Kh8 {[%clk
0:00:21.8]} 25. Rxe5 {[%clk 0:01:00.2]} 25... g6 {[%clk 0:00:07.5]} 26. Bxg6
{[%clk 0:00:57.6]} 26... fxg6 {[%clk 0:00:06]} 27. Qxg6 {[%clk 0:00:57.5]} 27...
Nf6 {[%clk 0:00:06.2]} 28. Rh5+ {[%clk 0:00:55.8]} 1-0

[Event "*** SCC Grand Prix: Titled Tuesday Blitz"]
[Site "Chess.com"]
[Date "2020.08.11"]
[Round "6"]
[White "Gabrielian_Artur"]
[Black "Orest_Vovk"]
[Result "0-1"]
[WhiteElo "2752"]
[BlackElo "2454"]
[TimeControl "180+1"]
[EndTime "11:06:07 PDT"]
[Termination "Orest_Vovk won by checkmate"]

1. e4 {[%clk 0:03:00.9]} 1... g5 {[%clk 0:02:59.3]} 2. d4 {[%clk 0:03:00]} 2...
g4 {[%clk 0:02:59.1]} 3. Qxg4 {[%clk 0:02:58.1]} 3... d5 {[%clk 0:02:59.2]} 4.
Qd1 {[%clk 0:02:57.6]} 4... dxe4 {[%clk 0:02:59.2]} 5. Nc3 {[%clk 0:02:58]} 5...
Nf6 {[%clk 0:02:59.2]} 6. Bg5 {[%clk 0:02:57.9]} 6... Bg7 {[%clk 0:02:58]} 7.
Bc4 {[%clk 0:02:56.9]} 7... Bg4 {[%clk 0:02:49]} 8. Nge2 {[%clk 0:02:53.4]} 8...
Nc6 {[%clk 0:02:38]} 9. h3 {[%clk 0:02:52.1]} 9... Bxe2 {[%clk 0:02:30.3]} 10.
Nxe2 {[%clk 0:02:51.4]} 10... h6 {[%clk 0:02:29.1]} 11. Be3 {[%clk 0:02:49.9]}
11... Nd5 {[%clk 0:02:26.7]} 12. c3 {[%clk 0:02:48.1]} 12... Nxe3 {[%clk
0:02:25.7]} 13. fxe3 {[%clk 0:02:48.2]} 13... e6 {[%clk 0:02:21.9]} 14. Bb5
{[%clk 0:02:46.1]} 14... Qg5 {[%clk 0:02:13.5]} 15. Qd2 {[%clk 0:02:40.3]} 15...
Qxb5 {[%clk 0:02:10.1]} 16. O-O {[%clk 0:02:36.3]} 16... f5 {[%clk 0:02:07.3]}
17. Nf4 {[%clk 0:02:35.5]} 17... Nd8 {[%clk 0:01:55.7]} 18. c4 {[%clk
0:02:32.7]} 18... Qd7 {[%clk 0:01:53.8]} 19. d5 {[%clk 0:02:24.3]} 19... Rg8
{[%clk 0:01:31.3]} 20. Rad1 {[%clk 0:02:21.1]} 20... Be5 {[%clk 0:01:25.2]} 21.
Qe2 {[%clk 0:02:18.2]} 21... Bxf4 {[%clk 0:01:23.9]} 22. Rxf4 {[%clk 0:02:17.1]}
22... Qg7 {[%clk 0:01:13.7]} 23. dxe6 {[%clk 0:02:12.6]} 23... Nxe6 {[%clk
0:01:10.5]} 24. Rxf5 {[%clk 0:02:13]} 24... Rd8 {[%clk 0:01:05]} 25. Rdf1 {[%clk
0:02:12.6]} 25... Rd7 {[%clk 0:00:57.6]} 26. c5 {[%clk 0:02:10.4]} 26... c6
{[%clk 0:00:53]} 27. Qh5+ {[%clk 0:02:02.9]} 27... Qg6 {[%clk 0:00:49.5]} 28.
Qe2 {[%clk 0:01:57.9]} 28... Kd8 {[%clk 0:00:46]} 29. Rf6 {[%clk 0:01:57.7]}
29... Qe8 {[%clk 0:00:43.6]} 30. Rxh6 {[%clk 0:01:52.6]} 30... Kc8 {[%clk
0:00:41.3]} 31. b4 {[%clk 0:01:51.3]} 31... Rf7 {[%clk 0:00:35.3]} 32. Rd1
{[%clk 0:01:48.3]} 32... Ng5 {[%clk 0:00:31.3]} 33. Qg4+ {[%clk 0:01:42.9]}
33... Kb8 {[%clk 0:00:23.4]} 34. Kh1 {[%clk 0:01:41.3]} 34... Qf8 {[%clk
0:00:20.6]} 35. Qg3+ {[%clk 0:01:38.5]} 35... Ka8 {[%clk 0:00:17.7]} 36. Qd6
{[%clk 0:01:14.3]} 36... Rf1+ {[%clk 0:00:09.2]} 37. Kh2 {[%clk 0:01:14.7]}
37... Nf3+ {[%clk 0:00:08.9]} 38. gxf3 {[%clk 0:01:14.3]} 38... Rf2+ {[%clk
0:00:09]} 39. Kh1 {[%clk 0:01:14.5]} 39... Qxf3# {[%clk 0:00:09.1]} 0-1

[Event "*** SCC Grand Prix: Titled Tuesday Blitz"]
[Site "Chess.com"]
[Date "2020.08.11"]
[Round "6"]
[White "CheckThis4"]
[Black "TimofeevAr"]
[Result "0-1"]
[WhiteElo "2635"]
[BlackElo "2855"]
[TimeControl "180+1"]
[EndTime "11:06:09 PDT"]
[Termination "TimofeevAr won by resignation"]

1. d4 {[%clk 0:03:00.9]} 1... Nf6 {[%clk 0:02:59.3]} 2. Bg5 {[%clk 0:03:00.1]}
2... d5 {[%clk 0:02:58.1]} 3. e3 {[%clk 0:02:59.7]} 3... Nbd7 {[%clk 0:02:57.9]}
4. Nf3 {[%clk 0:02:58.9]} 4... g6 {[%clk 0:02:57.8]} 5. c4 {[%clk 0:02:55.2]}
5... Bg7 {[%clk 0:02:55.8]} 6. Nc3 {[%clk 0:02:54.8]} 6... Nb6 {[%clk
0:02:49.5]} 7. c5 {[%clk 0:02:45.5]} 7... Nbd7 {[%clk 0:02:49.2]} 8. Bd3 {[%clk
0:02:42]} 8... O-O {[%clk 0:02:47.5]} 9. h4 {[%clk 0:02:32.1]} 9... h6 {[%clk
0:02:34.6]} 10. Bf4 {[%clk 0:02:31.7]} 10... c6 {[%clk 0:02:35]} 11. Qc2 {[%clk
0:02:28.3]} 11... Ng4 {[%clk 0:02:27.4]} 12. h5 {[%clk 0:02:19.7]} 12... g5
{[%clk 0:02:21.7]} 13. Bxg5 {[%clk 0:02:09.3]} 13... hxg5 {[%clk 0:02:20.5]} 14.
Nxg5 {[%clk 0:02:09.3]} 14... e5 {[%clk 0:01:58.2]} 15. Bh7+ {[%clk 0:01:54.7]}
15... Kh8 {[%clk 0:01:58.1]} 16. Bg8 {[%clk 0:01:45.5]} 16... e4 {[%clk
0:01:58.1]} 17. Nxf7+ {[%clk 0:01:39.1]} 17... Rxf7 {[%clk 0:01:57.6]} 18. Bxf7
{[%clk 0:01:40]} 18... Qf6 {[%clk 0:01:47.3]} 19. Bg6 {[%clk 0:01:38.6]} 19...
Bh6 {[%clk 0:01:46.2]} 20. Bxe4 {[%clk 0:01:26.5]} 20... dxe4 {[%clk 0:01:42.8]}
21. Nxe4 {[%clk 0:01:26.1]} 21... Qf5 {[%clk 0:01:39.9]} 22. O-O-O {[%clk
0:01:08]} 22... Ndf6 {[%clk 0:01:31.2]} 23. Nxf6 {[%clk 0:01:02.9]} 23... Qxf6
{[%clk 0:01:27.9]} 24. Rhf1 {[%clk 0:00:44]} 24... Bf5 {[%clk 0:01:25.4]} 25.
Qb3 {[%clk 0:00:43.7]} 25... Re8 {[%clk 0:01:18.7]} 26. Rde1 {[%clk 0:00:43.3]}
26... Qxd4 {[%clk 0:01:08.4]} 27. Qc3 {[%clk 0:00:21.3]} 27... Qxc3+ {[%clk
0:01:04.6]} 28. bxc3 {[%clk 0:00:22.2]} 28... Kg7 {[%clk 0:00:58.7]} 29. Kb2
{[%clk 0:00:21.8]} 29... Rd8 {[%clk 0:00:55.8]} 30. e4 {[%clk 0:00:20]} 30...
Rd2+ {[%clk 0:00:53.6]} 31. Ka3 {[%clk 0:00:17.1]} 31... Be6 {[%clk 0:00:53.7]}
32. f3 {[%clk 0:00:15.3]} 32... Rxa2+ {[%clk 0:00:52.4]} 0-1

[Event "*** SCC Grand Prix: Titled Tuesday Blitz"]
[Site "Chess.com"]
[Date "2020.08.11"]
[Round "6"]
[White "WiktoriaPOL"]
[Black "StephenDedalus83"]
[Result "0-1"]
[WhiteElo "1875"]
[BlackElo "2771"]
[TimeControl "180+1"]
[EndTime "11:06:09 PDT"]
[Termination "StephenDedalus83 won on time"]

1. c4 {[%clk 0:03:00.9]} 1... g6 {[%clk 0:02:58.7]} 2. Nc3 {[%clk 0:03:00.6]}
2... Bg7 {[%clk 0:02:59.4]} 3. g3 {[%clk 0:03:00.5]} 3... d6 {[%clk 0:02:57.4]}
4. Bg2 {[%clk 0:03:00.5]} 4... e5 {[%clk 0:02:57.3]} 5. d3 {[%clk 0:02:59.2]}
5... f5 {[%clk 0:02:57]} 6. e4 {[%clk 0:02:59.3]} 6... Nf6 {[%clk 0:02:56.4]} 7.
Nge2 {[%clk 0:02:59.3]} 7... O-O {[%clk 0:02:56.2]} 8. O-O {[%clk 0:02:59.4]}
8... Nc6 {[%clk 0:02:54.1]} 9. exf5 {[%clk 0:02:59.3]} 9... Bxf5 {[%clk
0:02:51.1]} 10. f4 {[%clk 0:02:58.8]} 10... Qd7 {[%clk 0:02:50.9]} 11. Be3
{[%clk 0:02:55.5]} 11... Rae8 {[%clk 0:02:49.7]} 12. Nd5 {[%clk 0:02:44]} 12...
Ng4 {[%clk 0:02:41.5]} 13. Bc1 {[%clk 0:02:33.6]} 13... Nh6 {[%clk 0:02:37.8]}
14. Be3 {[%clk 0:02:25.9]} 14... Bh3 {[%clk 0:02:35.4]} 15. Nec3 {[%clk
0:01:48.8]} 15... Bxg2 {[%clk 0:02:31.5]} 16. Kxg2 {[%clk 0:01:49.7]} 16... Nf5
{[%clk 0:02:30.3]} 17. Bf2 {[%clk 0:01:42.3]} 17... Ncd4 {[%clk 0:02:25.6]} 18.
Ne3 {[%clk 0:01:24.4]} 18... exf4 {[%clk 0:02:22.9]} 19. Nxf5 {[%clk 0:01:10.8]}
19... Nxf5 {[%clk 0:02:22]} 20. gxf4 {[%clk 0:01:09.5]} 20... Bd4 {[%clk
0:02:14]} 21. Qf3 {[%clk 0:01:06.6]} 21... Bxf2 {[%clk 0:02:06.7]} 22. Kxf2
{[%clk 0:01:02.7]} 22... c6 {[%clk 0:02:02.6]} 23. Rae1 {[%clk 0:00:49.9]} 23...
Nd4 {[%clk 0:02:01]} 24. Qg3 {[%clk 0:00:46]} 24... Qf5 {[%clk 0:01:46.7]} 25.
Kg2 {[%clk 0:00:31.3]} 25... Rxe1 {[%clk 0:01:42]} 26. Rxe1 {[%clk 0:00:32.2]}
26... Qxf4 {[%clk 0:01:41.9]} 27. Qxf4 {[%clk 0:00:27.2]} 27... Rxf4 {[%clk
0:01:41.6]} 28. Ne4 {[%clk 0:00:26.8]} 28... d5 {[%clk 0:01:36.7]} 29. cxd5
{[%clk 0:00:25.5]} 29... cxd5 {[%clk 0:01:36.1]} 30. Nd6 {[%clk 0:00:19.3]}
30... Rf6 {[%clk 0:01:29.2]} 31. Nxb7 {[%clk 0:00:09.1]} 31... Rb6 {[%clk
0:01:28.6]} 32. Re8+ {[%clk 0:00:07.1]} 32... Kf7 {[%clk 0:01:27.1]} 33. Rb8
{[%clk 0:00:06.2]} 33... Rxb2+ {[%clk 0:01:26]} 34. Kg3 {[%clk 0:00:05.5]} 34...
Kg7 {[%clk 0:01:25.2]} 35. Kf4 {[%clk 0:00:03.5]} 35... Ne6+ {[%clk 0:01:19.4]}
36. Ke5 {[%clk 0:00:03.1]} 36... Nc5 {[%clk 0:01:19.2]} 37. Kxd5 {[%clk
0:00:02.2]} 37... Nxb7 {[%clk 0:01:18.6]} 38. Kc6 {[%clk 0:00:02.4]} 38... Na5+
{[%clk 0:01:18.3]} 0-1

[Event "*** SCC Grand Prix: Titled Tuesday Blitz"]
[Site "Chess.com"]
[Date "2020.08.11"]
[Round "6"]
[White "TheBigBoss04"]
[Black "Gusarov91"]
[Result "0-1"]
[WhiteElo "2813"]
[BlackElo "2661"]
[TimeControl "180+1"]
[EndTime "11:06:10 PDT"]
[Termination "Gusarov91 won by resignation"]

1. Nf3 {[%clk 0:03:00.9]} 1... c6 {[%clk 0:02:53.1]} 2. c4 {[%clk 0:03:00.2]}
2... d5 {[%clk 0:02:50.2]} 3. g3 {[%clk 0:03:00.9]} 3... Nf6 {[%clk 0:02:50.2]}
4. Bg2 {[%clk 0:03:01.2]} 4... Bg4 {[%clk 0:02:50.8]} 5. O-O {[%clk 0:03:01.9]}
5... Bxf3 {[%clk 0:02:51.3]} 6. Bxf3 {[%clk 0:03:01.9]} 6... e6 {[%clk 0:02:52]}
7. d3 {[%clk 0:03:02.1]} 7... Nbd7 {[%clk 0:02:52.2]} 8. Bg2 {[%clk 0:03:02.5]}
8... Be7 {[%clk 0:02:52]} 9. Nc3 {[%clk 0:03:02.5]} 9... O-O {[%clk 0:02:52]}
10. b3 {[%clk 0:02:56.5]} 10... a5 {[%clk 0:02:51.7]} 11. Bb2 {[%clk 0:02:56.2]}
11... Re8 {[%clk 0:02:50.5]} 12. e3 {[%clk 0:02:53.8]} 12... Bf8 {[%clk
0:02:50.3]} 13. Qe2 {[%clk 0:02:53.2]} 13... g6 {[%clk 0:02:45.7]} 14. Rfd1
{[%clk 0:02:42.6]} 14... Qb8 {[%clk 0:02:42.8]} 15. a3 {[%clk 0:02:36.6]} 15...
b5 {[%clk 0:02:41.6]} 16. cxb5 {[%clk 0:02:34.5]} 16... cxb5 {[%clk 0:02:41.5]}
17. e4 {[%clk 0:02:32.2]} 17... d4 {[%clk 0:02:40.8]} 18. Nb1 {[%clk 0:02:29.9]}
18... e5 {[%clk 0:02:39.8]} 19. Nd2 {[%clk 0:02:27.6]} 19... a4 {[%clk
0:02:40.1]} 20. b4 {[%clk 0:02:26.8]} 20... Bh6 {[%clk 0:02:37]} 21. Nf3 {[%clk
0:02:21.6]} 21... Qd6 {[%clk 0:02:35.5]} 22. Bh3 {[%clk 0:02:18.3]} 22... Rac8
{[%clk 0:02:34.3]} 23. Kg2 {[%clk 0:02:12.5]} 23... Rc7 {[%clk 0:02:34.5]} 24.
Bc1 {[%clk 0:02:10.1]} 24... Bxc1 {[%clk 0:02:29.2]} 25. Raxc1 {[%clk
0:02:10.1]} 25... Rec8 {[%clk 0:02:29.3]} 26. Rxc7 {[%clk 0:02:09.1]} 26... Qxc7
{[%clk 0:02:28.3]} 27. Rd2 {[%clk 0:02:02.2]} 27... Qc1 {[%clk 0:02:27.5]} 28.
Rd1 {[%clk 0:01:21]} 28... Qc3 {[%clk 0:02:14]} 29. Rd2 {[%clk 0:01:16.9]} 29...
Rc7 {[%clk 0:02:12]} 30. Ra2 {[%clk 0:01:09.6]} 30... Qb3 {[%clk 0:02:10.5]} 31.
Ne1 {[%clk 0:01:03.8]} 31... Kg7 {[%clk 0:02:08.1]} 32. Qb2 {[%clk 0:00:52.7]}
32... Qxb2 {[%clk 0:02:03.8]} 33. Rxb2 {[%clk 0:00:53.6]} 33... Rc3 {[%clk
0:02:03.9]} 34. Ra2 {[%clk 0:00:53.3]} 34... h5 {[%clk 0:01:59.3]} 35. Kf1
{[%clk 0:00:50.8]} 35... Ng4 {[%clk 0:01:56.3]} 36. Ke2 {[%clk 0:00:49.6]} 36...
f5 {[%clk 0:01:53.5]} 37. f3 {[%clk 0:00:44.7]} 37... Ne3 {[%clk 0:01:51.7]} 38.
Kd2 {[%clk 0:00:41.1]} 38... Kf6 {[%clk 0:01:49]} 39. Ng2 {[%clk 0:00:39.4]}
39... Nf1+ {[%clk 0:01:42.1]} 40. Ke1 {[%clk 0:00:34.3]} 40... Rc1+ {[%clk
0:01:40.4]} 41. Kf2 {[%clk 0:00:33.9]} 41... Nb6 {[%clk 0:01:26.5]} 42. Nh4
{[%clk 0:00:25.3]} 42... Ne3 {[%clk 0:01:26.6]} 43. Ng2 {[%clk 0:00:22.1]} 43...
Nd1+ {[%clk 0:01:24.9]} 0-1

[Event "*** SCC Grand Prix: Titled Tuesday Blitz"]
[Site "Chess.com"]
[Date "2020.08.11"]
[Round "6"]
[White "kasparicy"]
[Black "rugbyclub"]
[Result "1-0"]
[WhiteElo "2347"]
[BlackElo "2179"]
[TimeControl "180+1"]
[EndTime "11:06:10 PDT"]
[Termination "kasparicy won by checkmate"]

1. e4 {[%clk 0:03:00.9]} 1... e5 {[%clk 0:02:57.3]} 2. Nf3 {[%clk 0:03:00.2]}
2... Nc6 {[%clk 0:02:57.8]} 3. Bc4 {[%clk 0:03:00.5]} 3... Bc5 {[%clk
0:02:55.3]} 4. O-O {[%clk 0:02:59.5]} 4... Nf6 {[%clk 0:02:51.1]} 5. d4 {[%clk
0:02:59.4]} 5... Bxd4 {[%clk 0:02:51.3]} 6. Nxd4 {[%clk 0:02:58.4]} 6... Nxd4
{[%clk 0:02:51.4]} 7. f4 {[%clk 0:02:58.4]} 7... d6 {[%clk 0:02:51.4]} 8. fxe5
{[%clk 0:02:50.2]} 8... dxe5 {[%clk 0:02:51.4]} 9. Bg5 {[%clk 0:02:51.1]} 9...
Qd6 {[%clk 0:02:51.4]} 10. Bxf6 {[%clk 0:02:47]} 10... gxf6 {[%clk 0:02:51]} 11.
c3 {[%clk 0:02:38.3]} 11... Qc5 {[%clk 0:02:04.3]} 12. cxd4 {[%clk 0:02:29.2]}
12... Qxc4 {[%clk 0:02:03.2]} 13. dxe5 {[%clk 0:02:19.9]} 13... fxe5 {[%clk
0:02:00.3]} 14. Nc3 {[%clk 0:02:17.7]} 14... Be6 {[%clk 0:01:55.1]} 15. Kh1
{[%clk 0:02:11.5]} 15... O-O {[%clk 0:01:48.7]} 16. Qh5 {[%clk 0:02:08.2]} 16...
f6 {[%clk 0:01:48.3]} 17. Rf3 {[%clk 0:02:04.1]} 17... Rf7 {[%clk 0:01:44.8]}
18. Raf1 {[%clk 0:02:01.1]} 18... Raf8 {[%clk 0:01:26.6]} 19. h3 {[%clk
0:01:57.9]} 19... b5 {[%clk 0:01:22.6]} 20. a3 {[%clk 0:01:56.6]} 20... a5
{[%clk 0:01:21.6]} 21. Qh4 {[%clk 0:01:30.8]} 21... b4 {[%clk 0:01:17.9]} 22.
axb4 {[%clk 0:01:28.8]} 22... axb4 {[%clk 0:01:16.8]} 23. Nd1 {[%clk 0:01:29.7]}
23... c5 {[%clk 0:00:52.3]} 24. Ne3 {[%clk 0:01:24]} 24... Qd4 {[%clk
0:00:45.8]} 25. Qh6 {[%clk 0:00:59.4]} 25... Qxe4 {[%clk 0:00:35.7]} 26. Rg3+
{[%clk 0:00:48.9]} 26... Kh8 {[%clk 0:00:35.4]} 27. Rxf6 {[%clk 0:00:48.9]}
27... Qb1+ {[%clk 0:00:10.7]} 28. Kh2 {[%clk 0:00:47]} 28... Rxf6 {[%clk
0:00:08.1]} 29. Qg7# {[%clk 0:00:46.2]} 1-0